bitfinex/quotes_BTCUSD_20240701
["timestamp","ask_amount","ask_price","bid_price","bid_amount"]
[1719811353977,0.00826776,63435.0,63434.0,2.96107984]
[1719811354181,0.00826776,63435.0,63434.0,2.95307984]
[1719811354377,0.00826776,63435.0,63434.0,3.04734316]
[1719811354640,0.00826776,63435.0,63434.0,3.05534316]
[1719811354846,0.00826776,63435.0,63434.0,3.06034316]
[1719811355268,0.00826776,63435.0,63434.0,2.96107984]
[1719811355465,0.00826776,63435.0,63434.0,3.05534316]
[1719811355639,0.00826776,63435.0,63434.0,2.97107984]
[1719811356588,0.00826776,63435.0,63434.0,3.06534316]
[1719811356985,0.00826776,63435.0,63434.0,3.06534995]
[1719811357402,0.00826776,63435.0,63434.0,3.06535112]
[1719811357608,0.00826776,63435.0,63434.0,2.97107984]
[1719811358017,0.00826776,63435.0,63434.0,2.77107984]
[1719811358430,0.00826776,63435.0,63434.0,3.06535112]
[1719811360002,0.00826776,63435.0,63434.0,3.06536536]
[1719811360430,0.00826776,63435.0,63434.0,3.06536531]
[1719811360648,0.00826776,63435.0,63434.0,2.86536531]
[1719811362347,0.00826776,63435.0,63434.0,3.06536531]
[1719811364659,0.00826776,63435.0,63434.0,3.25663581]
[1719811365207,0.00826776,63435.0,63434.0,3.18293581]
[1719811365409,0.00826776,63435.0,63434.0,3.25663581]
[1719811365816,0.00826776,63435.0,63434.0,3.16235034]
[1719811366229,0.00826776,63435.0,63434.0,3.18535034]
[1719811367677,0.00826776,63435.0,63434.0,3.69272111]
[1719811368267,0.00826776,63435.0,63434.0,4.00800911]
[1719811368882,0.00841,63437.0,63436.0,2.1532215]
[1719811369027,0.083,63452.0,63451.0,0.988007]
[1719811369229,0.083,63452.0,63451.0,1.69685598]
[1719811369437,0.083,63452.0,63451.0,2.01205898]
[1719811370313,0.085,63452.0,63451.0,2.01305898]
[1719811371650,0.089,63452.0,63451.0,1.94035898]
[1719811371856,0.089,63452.0,63451.0,2.01405898]
[1719811373012,0.087,63452.0,63451.0,2.01305898]
[1719811373582,0.089,63452.0,63451.0,2.01305898]
[1719811374445,0.085,63452.0,63451.0,2.01205898]
[1719811374738,0.089,63452.0,63451.0,2.01305898]
[1719811374940,0.089,63452.0,63451.0,1.93935898]
[1719811375147,0.089,63452.0,63451.0,2.01305898]
[1719811375346,0.085,63452.0,63451.0,2.01205898]
[1719811375550,0.086,63452.0,63451.0,2.01205898]
[1719811378236,0.086,63452.0,63451.0,2.07516398]
[1719811380395,0.1105695,63452.0,63451.0,2.00146398]
[1719811380549,0.1105695,63452.0,63451.0,2.07516398]
[1719811381377,0.1105695,63452.0,63451.0,0.893516]
[1719811381551,0.1726695,63452.0,63451.0,1.208719]
[1719811387774,0.1726695,63452.0,63451.0,0.735915]
[1719811389408,0.16394,63452.0,63451.0,0.893516]
[1719811389690,0.14894,63452.0,63451.0,0.893516]
[1719811389864,0.14894,63452.0,63451.0,0.967216]
[1719811392023,0.14894,63452.0,63451.0,1.282419]
[1719811392645,0.16394,63452.0,63451.0,1.282419]
[1719811392865,0.14894,63452.0,63451.0,1.282419]
[1719811393068,0.14894,63452.0,63451.0,1.208719]
[1719811393316,0.14894,63452.0,63451.0,1.282419]
[1719811395201,0.00384,63452.0,63451.0,1.597622]
[1719811396140,0.00384,63452.0,63451.0,2.07516398]
[1719811396297,0.00384,63452.0,63451.0,2.13736398]
[1719811396900,0.004355,63452.0,63451.0,2.07516398]
[1719811397142,0.004355,63452.0,63451.0,2.21386398]
[1719811399295,0.004355,63452.0,63451.0,2.34480127]
[1719811400124,0.004355,63452.0,63451.0,2.39188546]
[1719811400326,0.002355,63452.0,63451.0,2.39188546]
[1719811400531,0.002355,63452.0,63451.0,2.34479899]
[1719811401383,0.001355,63452.0,63451.0,2.34479899]
[1719811401609,0.003355,63452.0,63451.0,2.66000199]
[1719811401768,0.00841,63463.0,63462.0,0.987872]
[1719811401974,0.00841,63463.0,63462.0,2.20891499]
[1719811402216,0.00841,63463.0,63462.0,2.28261499]
[1719811403295,0.00841,63463.0,63462.0,2.80176399]
[1719811403660,0.00841,63463.0,63462.0,2.67082898]
[1719811403809,0.00841,63463.0,63462.0,2.80173828]
[1719811404414,0.00841,63463.0,63462.0,2.80373828]
[1719811406756,0.00841,63463.0,63462.0,2.80374006]
[1719811407346,0.00841,63463.0,63462.0,2.28859106]
[1719811407553,0.00841,63463.0,63462.0,2.48859106]
[1719811409980,0.00841,63463.0,63462.0,2.48858882]
[1719811410324,0.00841,63463.0,63462.0,2.35767998]
[1719811412325,0.00841,63463.0,63462.0,2.37690245]
[1719811413425,0.00841,63463.0,63462.0,2.17690245]
[1719811413597,0.00841,63463.0,63462.0,2.37690245]
[1719811414234,0.00841,63463.0,63462.0,2.03700245]
[1719811422612,0.00805239,63463.0,63462.0,2.03700245]
[1719811423585,0.00805239,63463.0,63462.0,2.16791515]
[1719811425922,0.00805239,63463.0,63462.0,2.03700245]
[1719811426132,0.00805239,63463.0,63462.0,2.16791515]
[1719811429823,0.00805239,63463.0,63462.0,2.09421515]
[1719811430027,0.00805239,63463.0,63462.0,2.16791515]
[1719811431265,0.00805239,63463.0,63462.0,2.16591515]
[1719811431474,0.00805239,63463.0,63462.0,2.16191515]
[1719811431881,0.00805239,63463.0,63462.0,2.16491515]
[1719811432415,0.00805239,63463.0,63462.0,2.03400245]
[1719811432566,0.00805239,63463.0,63462.0,2.16591513]
[1719811432987,0.00805239,63463.0,63462.0,2.03500245]
[1719811433193,0.00805239,63463.0,63462.0,2.16591513]
[1719811435672,0.00805239,63463.0,63462.0,2.16591796]
[1719811436281,0.00805239,63463.0,63462.0,2.16591793]
[1719811438979,0.00805239,63463.0,63462.0,1.77706891]
[1719811439773,0.00805239,63463.0,63462.0,1.77406891]
[1719811440178,0.00805239,63463.0,63462.0,1.77306891]
[1719811440388,0.00805239,63463.0,63462.0,1.77406891]
[1719811440639,0.01005239,63463.0,63462.0,1.77406891]
[1719811441019,0.03178189,63463.0,63462.0,1.77306891]
[1719811441362,0.03378189,63463.0,63462.0,1.77407121]
[1719811441566,0.01005239,63463.0,63462.0,1.45892221]
[1719811441776,0.33585389,63463.0,63462.0,0.67372]
[1719811441976,0.65099789,63463.0,63462.0,0.67372]
[1719811442242,0.64899789,63463.0,63462.0,0.67372]
[1719811442680,1.04984189,63463.0,63462.0,0.67472]
[1719811444755,1.36298589,63463.0,63462.0,0.47372]
[1719811445157,1.37198589,63463.0,63462.0,0.47472]
[1719811445681,1.36298589,63463.0,63462.0,0.47372]
[1719811446094,1.37198589,63463.0,63462.0,0.47472]
[1719811446527,1.37198589,63463.0,63462.0,0.47372]
[1719811446699,1.36298589,63463.0,63462.0,0.474644]
[1719811446934,1.37198589,63463.0,63462.0,0.475644]
[1719811447299,0.73969789,63463.0,63462.0,0.474644]
[1719811447897,0.75369789,63463.0,63462.0,0.474644]
[1719811448724,0.67999789,63463.0,63462.0,0.474644]
[1719811448948,0.74369789,63463.0,63462.0,0.474644]
[1719811449297,0.67999789,63463.0,63462.0,0.474644]
[1719811449516,0.66999789,63463.0,63462.0,0.474644]
[1719811449721,0.04605239,63463.0,63462.0,0.474644]
[1719811449929,0.03105239,63463.0,63462.0,1.30970598]
[1719811450142,0.03105239,63463.0,63462.0,1.62485498]
[1719811450550,0.03105239,63463.0,63462.0,1.30970598]
[1719811451589,0.02205239,63463.0,63462.0,1.30870598]
[1719811451788,0.00805239,63463.0,63462.0,1.30870598]
[1719811451902,0.00805239,63463.0,63462.0,1.30970598]
[1719811451903,0.02205239,63463.0,63462.0,1.30970598]
[1719811452102,0.02605239,63463.0,63462.0,1.30970598]
[1719811452346,0.01205239,63463.0,63462.0,1.30870598]
[1719811452771,0.01405239,63463.0,63462.0,1.30870598]
[1719811454388,0.01405239,63463.0,63462.0,1.62385498]
[1719811454975,0.01405239,63463.0,63462.0,1.68615498]
[1719811455388,0.01405239,63463.0,63462.0,1.76305498]
[1719811461673,0.01285239,63463.0,63462.0,1.76305498]
[1719811462120,0.01285239,63463.0,63462.0,2.07820398]
[1719811464761,0.01285239,63463.0,63462.0,2.27820398]
[1719811467285,0.01285239,63463.0,63462.0,2.27790612]
[1719811481452,0.01285239,63463.0,63462.0,1.62355712]
[1719811481653,0.01285239,63463.0,63462.0,1.69725712]
[1719811483487,0.01285239,63463.0,63462.0,2.01240612]
[1719811484007,0.01285239,63463.0,63462.0,1.69725712]
[1719811484347,0.01285239,63463.0,63462.0,2.01240612]
[1719811485197,0.01285239,63463.0,63462.0,1.69725712]
[1719811490812,0.01285239,63463.0,63462.0,2.01240612]
[1719811491014,0.01285239,63463.0,63462.0,2.09360612]
[1719811494374,0.01285239,63463.0,63462.0,2.14064493]
[1719811495176,0.01285239,63463.0,63462.0,2.16416433]
[1719811495384,0.01285239,63463.0,63462.0,2.09360612]
[1719811495542,0.01285239,63463.0,63462.0,2.16421391]
[1719811498763,0.01285239,63463.0,63462.0,2.16422322]
[1719811499102,0.01285239,63463.0,63462.0,2.09360612]
[1719811499328,0.01285239,63463.0,63462.0,2.1642244]
[1719811501193,0.01285239,63463.0,63462.0,2.16422762]
[1719811501922,0.01285239,63463.0,63462.0,2.35620612]
[1719811502145,0.01285239,63463.0,63462.0,2.54747662]
[1719811502354,0.01285239,63463.0,63462.0,2.64163862]
[1719811504283,0.01285239,63463.0,63462.0,2.64164184]
[1719811505757,0.01285239,63463.0,63462.0,2.45037134]
[1719811506782,0.01285239,63463.0,63462.0,2.64164184]
[1719811507241,0.01285239,63463.0,63462.0,2.54747662]
[1719811507669,0.01285239,63463.0,63462.0,2.35620612]
[1719811507838,0.01285239,63463.0,63462.0,2.66518314]
[1719811508056,0.01285239,63463.0,63462.0,2.47391264]
[1719811508241,0.01285239,63463.0,63462.0,2.98033214]
[1719811508653,0.01285239,63463.0,63462.0,2.66518314]
[1719811510102,0.01285239,63463.0,63462.0,2.47391264]
[1719811510251,0.01285239,63463.0,63462.0,2.98033214]
[1719811510451,0.01285239,63463.0,63462.0,2.86262562]
[1719811510855,0.01285239,63463.0,63462.0,2.92807549]
[1719811511237,0.01285239,63463.0,63462.0,2.92807539]
[1719811511681,0.00885239,63463.0,63462.0,2.92807539]
[1719811511900,0.00985239,63463.0,63462.0,2.93407539]
[1719811512099,0.00985239,63463.0,63462.0,3.09411871]
[1719811512326,0.00985239,63463.0,63462.0,2.95290925]
[1719811512526,0.00785239,63463.0,63462.0,3.26129469]
[1719811512924,0.00785239,63463.0,63462.0,3.26529469]
[1719811513297,0.00785239,63463.0,63462.0,3.39029613]
[1719811513500,0.00785239,63463.0,63462.0,3.07514713]
[1719811513854,0.00885239,63463.0,63462.0,2.96390486]
[1719811514088,0.00885239,63463.0,63462.0,2.96390435]
[1719811514291,0.00885239,63463.0,63462.0,2.94507122]
[1719811514489,0.00885239,63463.0,63462.0,2.68010072]
[1719811514662,0.00885239,63463.0,63462.0,2.68835512]
[1719811515227,0.00885239,63463.0,63462.0,2.80592975]
[1719811515453,0.00885239,63463.0,63462.0,2.68835512]
[1719811515675,0.00885239,63463.0,63462.0,2.47085512]
[1719811515875,0.00885239,63463.0,63462.0,2.66212447]
[1719811516075,0.00885239,63463.0,63462.0,2.54455512]
[1719811516457,0.00885239,63463.0,63462.0,2.63861635]
[1719811516884,0.00885239,63463.0,63462.0,2.6386165]
[1719811517290,0.00885239,63463.0,63462.0,2.3234675]
[1719811520220,0.00885239,63463.0,63462.0,2.3234678]
[1719811521055,0.00885239,63463.0,63462.0,2.1234678]
[1719811521260,0.00885239,63463.0,63462.0,1.32540812]
[1719811521432,0.00885239,63463.0,63462.0,1.64055712]
[1719811522016,0.07345239,63463.0,63462.0,1.64055712]
[1719811522243,0.07145239,63463.0,63462.0,1.62355712]
[1719811522418,0.07145239,63463.0,63462.0,1.62755712]
[1719811522622,0.07145239,63463.0,63462.0,1.63055712]
[1719811522870,0.16895239,63463.0,63462.0,1.31540812]
[1719811523109,0.17768189,63463.0,63462.0,1.31540812]
[1719811524531,0.16895239,63463.0,63462.0,1.31540812]
[1719811525133,0.15395239,63463.0,63462.0,1.31540812]
[1719811525334,0.16895239,63463.0,63462.0,1.31540812]
[1719811526271,0.15395239,63463.0,63462.0,1.31540812]
[1719811526645,0.16895239,63463.0,63462.0,1.31540812]
[1719811526853,0.15395239,63463.0,63462.0,1.31540812]
[1719811527244,0.15395239,63463.0,63462.0,1.38910812]
[1719811528243,0.17768189,63463.0,63462.0,1.38910812]
[1719811528446,0.33525389,63463.0,63462.0,0.84268512]
[1719811528706,0.65039789,63463.0,63462.0,0.48034614]
[1719811528897,0.96554189,63463.0,63462.0,0.48034614]
[1719811529571,0.96554189,63463.0,63462.0,0.47634614]
[1719811529731,0.97554189,63463.0,63462.0,0.47734614]
[1719811529929,1.47438589,63463.0,63462.0,0.47434614]
[1719811530316,1.47438589,63463.0,63462.0,0.47534614]
[1719811530317,1.48638589,63463.0,63462.0,0.47534614]
[1719811530546,1.47638589,63463.0,63462.0,0.47434614]
[1719811531952,1.49038589,63463.0,63462.0,0.47534614]
[1719811532507,1.49038589,63463.0,63462.0,0.47434614]
[1719811532508,1.47838589,63463.0,63462.0,0.47434614]
[1719811534302,1.49238589,63463.0,63462.0,0.47534614]
[1719811536605,1.49238589,63463.0,63462.0,1.29034614]
[1719811539518,1.69238589,63463.0,63462.0,1.29034614]
[1719811539723,1.49238589,63463.0,63462.0,1.29034614]
[1719811542844,2.00752989,63463.0,63462.0,1.29034614]
[1719811543484,2.03220179,63463.0,63462.0,1.29034614]
[1719811544025,1.83220179,63463.0,63462.0,1.29034614]
[1719811544483,1.83220179,63463.0,63462.0,1.28934614]
[1719811544639,1.80420179,63463.0,63462.0,1.28834614]
[1719811544983,1.83220179,63463.0,63462.0,1.28934614]
[1719811546364,2.03220179,63463.0,63462.0,1.28934614]
[1719811546749,1.82190017,63463.0,63462.0,1.28934614]
[1719811547755,1.79722827,63463.0,63462.0,1.28934614]
[1719811550637,1.72352827,63463.0,63462.0,1.28934614]
[1719811550844,1.79722827,63463.0,63462.0,1.28934614]
[1719811551912,2.02190065,63463.0,63462.0,1.28934614]
[1719811552148,1.99722827,63463.0,63462.0,1.28934614]
[1719811552759,2.02190024,63463.0,63462.0,1.28934614]
[1719811558582,2.61712322,63463.0,63462.0,1.28934614]
[1719811558789,2.78342322,63463.0,63462.0,1.28934614]
[1719811558991,3.573728,63463.0,63462.0,0.816924]
[1719811560303,3.559728,63463.0,63462.0,0.816924]
[1719811560501,3.545728,63463.0,63462.0,0.815924]
[1719811560706,3.53861494,63463.0,63462.0,0.815924]
[1719811560961,3.57378788,63463.0,63462.0,0.815924]
[1719811561140,4.10501696,63463.0,63462.0,0.78734174]
[1719811561345,4.07493188,63463.0,63462.0,0.6908131]
[1719811561545,4.20671288,63463.0,63462.0,0.6908131]
[1719811562074,4.08893188,63463.0,63462.0,0.6908131]
[1719811562284,3.66137088,63463.0,63462.0,0.6908131]
[1719811562482,4.88239688,63463.0,63462.0,0.6908131]
[1719811563110,4.9200983,63463.0,63462.0,0.6908131]
[1719811563649,4.80472294,63463.0,63462.0,0.6908131]
[1719811563848,4.92021851,63463.0,63462.0,0.6908131]
[1719811564051,4.80472294,63463.0,63462.0,0.6908131]
[1719811564264,4.92019096,63463.0,63462.0,0.6908131]
[1719811565113,4.82598907,63463.0,63462.0,0.6908131]
[1719811567134,4.80472294,63463.0,63462.0,0.6908131]
[1719811567304,4.82598776,63463.0,63462.0,0.6908131]
[1719811570090,4.81198776,63463.0,63462.0,0.6908131]
[1719811570297,4.82598776,63463.0,63462.0,0.6908131]
[1719811570444,4.82591009,63463.0,63462.0,0.6908131]
[1719811570651,4.81191009,63463.0,63462.0,0.6908131]
[1719811570816,4.79791009,63463.0,63462.0,0.6908131]
[1719811571020,4.82591009,63463.0,63462.0,0.6908131]
[1719811571407,4.90617054,63463.0,63462.0,0.6908131]
[1719811571596,4.92017054,63463.0,63462.0,0.6908131]
[1719811572008,4.94923426,63463.0,63462.0,0.6908131]
[1719811572496,4.85497381,63463.0,63462.0,0.6908131]
[1719811573053,4.85497381,63463.0,63462.0,0.6814631]
[1719811573476,4.83378666,63463.0,63462.0,0.6814631]
[1719811573680,4.83378666,63463.0,63462.0,0.6674631]
[1719811573681,4.97287494,63463.0,63462.0,0.6674631]
[1719811574150,4.97287495,63463.0,63462.0,0.6674631]
[1719811574274,4.97287495,63463.0,63462.0,0.6344631]
[1719811574487,1.9418605,63452.0,63451.0,0.000924]
[1719811574705,2.47367145,63452.0,63451.0,0.000924]
[1719811575082,2.47867145,63452.0,63451.0,0.000924]
[1719811575932,2.93874745,63452.0,63451.0,0.000924]
[1719811576491,2.95274745,63452.0,63451.0,0.000924]
[1719811579825,3.26794545,63452.0,63451.0,0.000924]
[1719811580036,2.98420316,63452.0,63451.0,0.000924]
[1719811580237,4.19742316,63452.0,63451.0,0.000924]
[1719811581938,4.07327016,63452.0,63451.0,0.000924]
[1719811582161,3.09672916,63452.0,63451.0,0.000924]
[1719811582344,3.05699357,63452.0,63451.0,0.000924]
[1719811582546,2.97429357,63452.0,63451.0,0.000924]
[1719811583112,2.95316416,63452.0,63451.0,0.000924]
[1719811585427,2.56240316,63452.0,63451.0,0.000924]
[1719811585655,2.08487145,63452.0,63451.0,0.000924]
[1719811585846,2.08487145,63452.0,63451.0,0.077124]
[1719811587085,2.10369153,63452.0,63451.0,0.077124]
[1719811587288,1.98595153,63452.0,63451.0,0.140324]
[1719811587507,1.67075353,63452.0,63451.0,0.140324]
[1719811589207,1.67075353,63452.0,63451.0,0.000924]
[1719811589607,1.87075353,63452.0,63451.0,0.000924]
[1719811591861,2.03308724,63452.0,63451.0,0.000924]
[1719811592263,2.10678724,63452.0,63451.0,0.000924]
[1719811593865,1.94445353,63452.0,63451.0,0.000924]
[1719811595395,2.03889439,63452.0,63451.0,0.000924]
[1719811596442,1.94445353,63452.0,63451.0,0.000924]
[1719811597222,2.02705353,63452.0,63451.0,0.000924]
[1719811597541,2.34225153,63452.0,63451.0,0.000924]
[1719811598744,2.25965153,63452.0,63451.0,0.000924]
[1719811599148,2.42198524,63452.0,63451.0,0.000924]
[1719811599887,2.25965153,63452.0,63451.0,0.000924]
[1719811600653,2.44240453,63452.0,63451.0,0.000924]
[1719811600856,2.46351407,63452.0,63451.0,0.000924]
[1719811601039,2.55825407,63452.0,63451.0,0.000924]
[1719811601246,2.58125407,63452.0,63451.0,0.000924]
[1719811601468,2.74358778,63452.0,63451.0,0.000924]
[1719811602106,3.58634876,63452.0,63451.0,0.000924]
[1719811603619,3.72820005,63452.0,63451.0,0.000924]
[1719811604312,3.58634876,63452.0,63451.0,0.000924]
[1719811605301,3.58632566,63452.0,63451.0,0.000924]
[1719811608680,3.58631509,63452.0,63451.0,0.000924]
[1719811609008,3.58631893,63452.0,63451.0,0.000924]
[1719811611620,3.56522424,63452.0,63451.0,0.000924]
[1719811611829,3.58631414,63452.0,63451.0,0.000924]
[1719811613650,3.97981214,63452.0,63451.0,0.000924]
[1719811613884,4.1395478,63452.0,63451.0,0.000924]
[1719811614093,3.97981214,63452.0,63451.0,0.000924]
[1719811614284,4.1395478,63452.0,63451.0,0.000924]
[1719811614819,4.1184579,63452.0,63451.0,0.000924]
[1719811615043,0.2337295,63435.0,63434.0,0.000924]
[1719811615255,0.80502547,63435.0,63434.0,0.000924]
[1719811615450,1.53559147,63435.0,63434.0,0.000924]
[1719811615673,1.85087447,63435.0,63434.0,0.000924]
[1719811616014,1.99284673,63435.0,63434.0,0.000924]
[1719811616222,1.86487447,63435.0,63434.0,0.000924]
[1719811617127,1.87887447,63435.0,63434.0,0.000924]
[1719811617385,2.04121345,63435.0,63434.0,0.000924]
[1719811617787,2.55649645,63435.0,63434.0,0.000924]
[1719811617986,2.57949645,63435.0,63434.0,0.000924]
[1719811618346,4.96947816,63435.0,63434.0,0.000924]
[1719811618515,4.67488158,63435.0,63434.0,0.000924]
[1719811618716,4.66088158,63435.0,63434.0,0.000924]
[1719811619118,4.53295216,63435.0,63434.0,0.000924]
[1719811619351,4.51895216,63435.0,63434.0,0.000924]
[1719811619553,4.46286916,63435.0,63434.0,0.000924]
[1719811619774,3.93249616,63435.0,63434.0,0.000924]
[1719811620416,3.93382416,63435.0,63434.0,0.000924]
[1719811621647,3.79155216,63435.0,63434.0,0.000924]
[1719811621848,3.60715616,63435.0,63434.0,0.000924]
[1719811622640,3.50619616,63435.0,63434.0,0.000924]
[1719811622862,2.08525345,63435.0,63434.0,0.000924]
[1719811623033,2.15895345,63435.0,63434.0,0.079824]
[1719811623237,2.08525345,63435.0,63434.0,0.079824]
[1719811623442,2.08525345,63435.0,63434.0,0.142824]
[1719811623443,2.04121345,63435.0,63434.0,0.142824]
[1719811624294,1.36359147,63435.0,63434.0,0.142824]
[1719811624497,1.28989147,63435.0,63434.0,0.142824]
[1719811624696,0.96060847,63435.0,63434.0,0.142824]
[1719811624952,1.16060847,63435.0,63434.0,0.142824]
[1719811625152,1.17460847,63435.0,63434.0,0.142824]
[1719811625366,0.97460847,63435.0,63434.0,0.142824]
[1719811625490,1.16060847,63435.0,63434.0,0.142824]
[1719811625699,1.14660847,63435.0,63434.0,0.142824]
[1719811625913,1.16060847,63435.0,63434.0,0.142824]
[1719811626118,1.17460847,63435.0,63434.0,0.142824]
[1719811627666,0.97460847,63435.0,63434.0,0.142824]
[1719811629542,0.96460847,63435.0,63434.0,0.142824]
[1719811636338,0.97460847,63435.0,63434.0,0.142824]
[1719811638455,1.04830847,63435.0,63434.0,0.142824]
[1719811640635,0.17640147,63435.0,63434.0,0.142824]
[1719811640835,0.17640147,63435.0,63434.0,0.216524]
[1719811640836,0.0517295,63435.0,63434.0,0.216524]
[1719811641653,0.0377295,63435.0,63434.0,0.216524]
[1719811641828,0.0237295,63435.0,63434.0,0.216524]
[1719811642053,0.0377295,63435.0,63434.0,0.216524]
[1719811642247,0.114,63435.0,63434.0,0.216524]
[1719811642446,0.1367295,63435.0,63434.0,0.374168]
[1719811643031,0.1517295,63435.0,63434.0,0.374168]
[1719811643238,0.1377295,63435.0,63434.0,0.374168]
[1719811643461,0.114,63435.0,63434.0,1.004744]
[1719811643811,0.028,63435.0,63434.0,1.004744]
[1719811644020,0.0517295,63435.0,63434.0,1.004744]
[1719811644170,0.0517295,63435.0,63434.0,0.689456]
[1719811645606,0.0517295,63435.0,63434.0,0.615756]
[1719811647406,0.0517295,63435.0,63434.0,0.300468]
[1719811648852,0.0517295,63435.0,63434.0,0.363599]
[1719811651525,0.0517295,63435.0,63434.0,0.205955]
[1719811653462,0.2093705,63435.0,63434.0,0.205955]
[1719811653652,0.3093705,63435.0,63434.0,0.205955]
[1719811653790,0.6246535,63435.0,63434.0,0.205955]
[1719811654192,0.6246535,63435.0,63434.0,0.142824]
[1719811656821,0.9399365,63435.0,63434.0,0.000924]
[1719811657491,0.9646163,63435.0,63434.0,0.000924]
[1719811663161,0.1614093,63435.0,63434.0,0.145024]
[1719811663519,0.0517295,63435.0,63434.0,0.145024]
[1719811663692,0.1517295,63435.0,63434.0,0.145024]
[1719811663872,0.1367295,63435.0,63434.0,0.145024]
[1719811664254,0.1517295,63435.0,63434.0,0.145024]
[1719811664916,0.0517295,63435.0,63434.0,0.145024]
[1719811665157,0.1517295,63435.0,63434.0,0.145024]
[1719811666108,0.0517295,63435.0,63434.0,0.145024]
[1719811669273,0.0517295,63435.0,63434.0,0.14498298]
[1719811675351,0.0764076,63435.0,63434.0,0.14498298]
[1719811675529,0.0764076,63435.0,63434.0,0.30262698]
[1719811677119,0.0517295,63435.0,63434.0,0.30262698]
[1719811677958,0.07640766,63435.0,63434.0,0.30262698]
[1719811679754,0.06140766,63435.0,63434.0,0.30262698]
[1719811679930,0.0367295,63435.0,63434.0,0.30262698]
[1719811680624,0.0367295,63435.0,63434.0,0.61791498]
[1719811680806,0.0517295,63435.0,63434.0,0.61791498]
[1719811685390,0.0517295,63435.0,63434.0,0.30262698]
[1719811685537,0.07640758,63435.0,63434.0,0.30262698]
[1719811689276,0.028,63435.0,63434.0,0.93320298]
[1719811689600,0.0517295,63435.0,63434.0,0.08308298]
[1719811690057,0.07640739,63435.0,63434.0,0.08308298]
[1719811695296,0.17640739,63435.0,63434.0,0.08308298]
[1719811695500,0.33404839,63435.0,63434.0,0.08308298]
[1719811698392,0.15267789,63435.0,63434.0,0.08308298]
[1719811698620,0.06140739,63435.0,63434.0,0.08308298]
[1719811699055,0.05267789,63435.0,63434.0,0.55601498]
[1719811699285,0.05267789,63435.0,63434.0,0.61641498]
[1719811701933,0.028,63435.0,63434.0,0.61641498]
[1719811702345,0.05267709,63435.0,63434.0,0.61641498]
[1719811702544,0.028,63435.0,63434.0,0.61641498]
[1719811702808,0.05267711,63435.0,63434.0,0.61641498]
[1719811703407,0.06140661,63435.0,63434.0,0.61641498]
[1719811704213,0.07724661,63435.0,63434.0,0.61641498]
[1719811704414,0.0525695,63435.0,63434.0,0.61641498]
[1719811704616,0.07724691,63435.0,63434.0,0.61641498]
[1719811705653,0.07724691,63435.0,63434.0,0.30112698]
[1719811707520,0.07724691,63435.0,63434.0,0.14348298]
[1719811708585,0.23488791,63435.0,63434.0,0.00088298]
[1719811708792,0.55017091,63435.0,63434.0,0.00088298]
[1719811708940,0.65017091,63435.0,63434.0,0.00088298]
[1719811709546,0.33488791,63435.0,63434.0,0.00088298]
[1719811715154,0.33488791,63435.0,63434.0,0.14078298]
[1719811716501,0.33488791,63435.0,63434.0,0.14078298]
[1719811719797,0.31115841,63435.0,63434.0,0.14078298]
[1719811720011,0.33488791,63435.0,63434.0,0.14078298]
[1719811722741,0.15351741,63435.0,63434.0,0.14078298]
[1719811723136,0.16224691,63435.0,63434.0,0.14078298]
[1719811723339,0.33488791,63435.0,63434.0,0.14078298]
[1719811726145,0.15351741,63435.0,63434.0,0.14078298]
[1719811726321,0.05351741,63435.0,63434.0,0.14078298]
[1719811727130,0.05351741,63435.0,63434.0,0.29842698]
[1719811730432,0.07724691,63435.0,63434.0,0.14078298]
[1719811734320,0.17724691,63435.0,63434.0,0.14078298]
[1719811735360,0.33488791,63435.0,63434.0,0.14078298]
[1719811736290,0.96545391,63435.0,63434.0,0.00088298]
[1719811750667,0.65017091,63435.0,63434.0,0.00088298]
[1719811750866,0.63517091,63435.0,63434.0,0.00088298]
[1719811751029,0.65017091,63435.0,63434.0,0.00088298]
[1719811754344,0.31115841,63435.0,63434.0,0.00088298]
[1719811754549,0.31988791,63435.0,63434.0,0.14478298]
[1719811757025,0.15351741,63435.0,63434.0,0.69141498]
[1719811757248,0.12884,63435.0,63434.0,0.61771498]
[1719811757470,0.12884,63435.0,63434.0,0.69141498]
[1719811757860,0.12884,63435.0,63434.0,0.89141498]
[1719811758060,0.11484,63435.0,63434.0,0.89141498]
[1719811758474,0.02884,63435.0,63434.0,1.36904196]
[1719811759466,0.02884,63435.0,63434.0,1.50001929]
[1719811759663,0.01484,63435.0,63434.0,1.50001929]
[1719811760387,0.01284,63435.0,63434.0,1.36904196]
[1719811760592,0.01984,63435.0,63434.0,1.36904196]
[1719811760966,0.00784,63435.0,63434.0,1.29534196]
[1719811761200,0.00784,63435.0,63434.0,1.36904196]
[1719811761383,0.01284,63435.0,63434.0,1.36904196]
[1719811762891,0.01284,63435.0,63434.0,1.68432996]
[1719811764098,0.01284,63435.0,63434.0,1.61062996]
[1719811764312,0.01284,63435.0,63434.0,1.68432996]
[1719811764516,0.01284,63435.0,63434.0,1.81530378]
[1719811764665,0.01284,63435.0,63434.0,1.68432996]
[1719811764868,0.01284,63435.0,63434.0,1.8153021]
[1719811766196,0.01284,63435.0,63434.0,2.15725996]
[1719811768686,0.01284,63435.0,63434.0,2.08355996]
[1719811769081,0.01284,63435.0,63434.0,2.15725996]
[1719811777931,0.01284,63435.0,63434.0,2.34853046]
[1719811778107,0.01284,63435.0,63434.0,2.15725996]
[1719811781771,0.01284,63435.0,63434.0,2.34853046]
[1719811781964,0.01284,63435.0,63434.0,2.54853046]
[1719811782367,0.01284,63435.0,63434.0,2.6795031]
[1719811783726,0.01284,63435.0,63434.0,2.41453122]
[1719811783954,0.01284,63435.0,63434.0,2.48823122]
[1719811784188,0.01284,63435.0,63434.0,2.48823139]
[1719811784403,0.01284,63435.0,63434.0,2.67950189]
[1719811785030,0.01284,63435.0,63434.0,2.48823139]
[1719811785667,0.01284,63435.0,63434.0,2.41453139]
[1719811785872,0.01284,63435.0,63434.0,2.48823139]
[1719811786665,0.01284,63435.0,63434.0,2.35725996]
[1719811786829,0.01284,63435.0,63434.0,2.48823176]
[1719811793279,0.01284,63435.0,63434.0,2.4882312]
[1719811796105,0.01284,63435.0,63434.0,2.6795017]
[1719811796318,0.01284,63435.0,63434.0,2.48823124]
[1719811796858,0.01284,63435.0,63434.0,2.67950174]
[1719811797065,0.01284,63435.0,63434.0,2.48823124]
[1719811798047,0.01284,63435.0,63434.0,2.67950174]
[1719811798260,0.01284,63435.0,63434.0,2.48823124]
[1719811799455,0.01284,63435.0,63434.0,2.48823107]
[1719811800550,0.01284,63435.0,63434.0,2.67950157]
[1719811800973,0.01284,63435.0,63434.0,2.75007192]
[1719811801513,0.01284,63435.0,63434.0,2.67950157]
[1719811801935,0.01284,63435.0,63434.0,2.67949416]